Cogmind - Beta 13 @@@ ROGUE MODE // 2024.04.10 @ 20:54:27 Player: SonVince Result: Destroyed by D-53 Grenadier with Mini Grenade Launcher Performance ------------- Evolutions (0) 0 Regions Visited (4) 800 Robots Destroyed (20) 100 Value Destroyed (460) 460 Prototype IDs (23) 460 Alien Tech Used (0) 0 Bonus (300) 300 TOTAL SCORE: 2120 Bonus ------- Aligned with FarCom 300 Cogmind --------- Core Integrity 0/250 Matter 247/300 Energy 100/100 System Corruption 0% Temperature Cool (0) Movement Core (800) Ox15 Location -9/Mines Parts ------- > --- POWER (1) -------- (None) > --- PROPULSION (2) --- (None) > --- UTILITY (2) ------ High-capacity Storage Unit Signal Interpreter > --- WEAPON (2) ------- Light Cannon Light Cannon > --- INVENTORY (20) --- Ion Engine Seismic Detector Improved Targeting Computer Improved Targeting Computer Light Armor Plating PSU Rigger Particle Gun Heavy Assault Rifle Heavy Assault Rifle Light Cannon Light Cannon Grenade Launcher Grenade Launcher Datajack Peak State ------------ > --- POWER ------------ Ion Engine > --- PROPULSION ------- Light Treads Light Treads > --- UTILITY ---------- Large Storage Unit Visual Processing Unit > --- WEAPON ----------- Light Assault Rifle Light Assault Rifle > --- INVENTORY -------- Ion Engine Light Treads Aluminum Leg Aluminum Leg Small Storage Unit Seismic Detector Small Laser Light Cannon Light Cannon Grenade Launcher [Rating: 9] Favorites ----------- Power Ion Engine Engine Ion Engine Propulsion Light Treads Treads Light Treads Utility Large Storage Unit Storage Large Storage Unit Processor Signal Interpreter Weapon Light Cannon Energy Gun Medium Laser Ballistic Gun Light Assault Rifle Ballistic Cannon Light Cannon Build | -11 -10 -10 -10 -9 ------- Run | Yrd Mat Min Exi Min Slots Evolved . | . . . . . Power . | . . . . . Propulsion . | . . . . . Utility . | . . . . . Weapon . | . . . . . Parts Attached 20 | 6 10 1 1 2 Power 2 | 1 1 . . . Engine 2 | 1 1 . . . Core . | . . . . . Reactor . | . . . . . Propulsion 4 | 2 1 1 . . Treads 4 | 2 1 1 . . Leg . | . . . . . Wheel . | . . . . . Hover . | . . . . . Flight . | . . . . . Utility 5 | 1 3 . 1 . Device . | . . . . . Storage 3 | 1 1 . 1 . Processor 2 | . 2 . . . Hackware . | . . . . . Protection . | . . . . . Artifact . | . . . . . Weapon 9 | 2 5 . . 2 Energy Gun 3 | 2 1 . . . Energy Cannon . | . . . . . Ballistic Gun 2 | . 2 . . . Ballistic Cannon 4 | . 2 . . 2 Launcher . | . . . . . Special Weapon . | . . . . . Impact Weapon . | . . . . . Slashing Weapon . | . . . . . Piercing Weapon . | . . . . . Special Melee Weapon . | . . . . . Unidentified Prototypes . | . . . . . Parts Lost 5 | . . . . 5 Power 1 | . . . . 1 Propulsion 2 | . . . . 2 Utility . | . . . . . Weapon 2 | . . . . 2 Highest Loss Streak 5 | . . . . 5 To Critical Strikes . | . . . . . Average Slot Usage (%) 98 | . 98 100 100 83 Engine 13 | . 14 14 14 11 Treads 27 | . 28 28 28 16 Storage 14 | . 14 14 14 14 Processor 12 | . 12 14 14 14 Energy Gun 3 | . 5 . . . Ballistic Gun 6 | . 9 . . . Ballistic Cannon 18 | . 12 28 28 25 Naked Turns . | . . . . . Heaviest Build 51 | 14 31 31 51 51 Greatest Support 40 | 40 40 40 40 40 Greatest Overweight (x) 16 | . . . 1 16 Average Overweight (x) . | . . . . 2 Largest Inventory Capacity 20 | 8 15 15 20 20 Average Capacity 14 | 7 12 15 18 20 Most Carried 16 | 5 15 15 16 16 Average Carried 11 | 3 9 14 15 15 Final Capacity 20 | 8 15 15 20 20 Final Carried 16 | 4 14 15 16 14 Class Distribution -------------------- 100% | Mutant Dominant Class ---------------- Mutant | -10/Materials Mutant | -10/Mines Mutant | -10/Exiles Mutant | -9/Mines Resources | -11 -10 -10 -10 -9 ----------- Run | Yrd Mat Min Exi Min Matter Collected 542 | 212 320 10 . . Remotely . | . . . . . Salvage Created 533 | . 514 . . 19 Parts 37 | . 36 . . 1 Haulers Intercepted 2 | . 2 . . . Recyclers Shooed . | . . . . . Parts Field Recycled . | . . . . . Retrieved Matter . | . . . . . Parts Self-Destructed . | . . . . . Prevented . | . . . . . Kills | -11 -10 -10 -10 -9 ------- Run | Yrd Mat Min Exi Min Combat Hostiles Destroyed 13 | . 12 . . 1 Guns 6 | . 6 . . . Cannons 7 | . 6 . . 1 Classes Destroyed 7 | . 6 . . 1 Worker 2 | . 2 . . . Tunneler 1 | . 1 . . . Hauler 2 | . 2 . . . Watcher 2 | . 2 . . . Swarmer 3 | . 3 . . . Grunt 9 | . 9 . . . Demolisher 1 | . . . . 1 Best Kill Streak 5 | . 5 . . 1 Combat Bots Only 5 | . 5 . . 1 Max Kills in Single Turn 2 | . 2 . . 1 Gunslinging 1 | . 1 . . . Exploded . | . . . . . Melee . | . . . . . Uniques/NPCs Destroyed . | . . . . . Combat | -11 -10 -10 -10 -9 -------- Run | Yrd Mat Min Exi Min Hostile Shots Fired 72 | . 56 . . 16 Missed 12 | . 12 . . . Damage Taken 1282 | . 504 . . 778 Core 268 | . 111 . . 157 Absorbed by Shields . | . . . . . Core Remaining (%) 100 | 100 . . . . Volleys Fired 70 | . 63 . . 7 Largest 2 | . 2 . . 2 Hottest 100 | . 100 . . 70 Shots Fired 109 | . 97 . . 12 Gun 67 | . 67 . . . Cannon 42 | . 30 . . 12 Launcher . | . . . . . Special . | . . . . . Kinetic 74 | . 62 . . 12 Thermal 35 | . 35 . . . Explosive . | . . . . . Electromagnetic . | . . . . . Robot Hit Streak 10 | . 10 . . 2 Robot Miss Streak 4 | . 4 . . 2 Penetration Max . | . . . . . Secondary Targets 2 | . 2 . . . Max Gunslinging Chain 1 | . 1 . . . Shots Hit Robots 65 | . 59 . . 6 Core Hits 31 | . 28 . . 3 Critical Kills . | . . . . . Critical Parts Destroyed . | . . . . . Critical Strikes 2 | . 2 . . . Burn 2 | . 2 . . . Melee Attacks . | . . . . . Impact . | . . . . . Slashing . | . . . . . Piercing . | . . . . . Sneak Attacks . | . . . . . Combat Hostiles . | . . . . . Follow-up Attacks . | . . . . . Damage Inflicted 940 | . 815 . . 125 Guns 426 | . 426 . . . Cannons 442 | . 317 . . 125 Explosions . | . . . . . Melee . | . . . . . Ramming 72 | . 72 . . . Kinetic 617 | . 492 . . 125 Thermal 251 | . 251 . . . Explosive . | . . . . . Electromagnetic . | . . . . . Impact . | . . . . . Slashing . | . . . . . Piercing . | . . . . . Highest Corruption . | . . . . . Average Corruption . | . . . . . Corruption Purged . | . . . . . Corruption Blocked . | . . . . . Overload Shots . | . . . . . Overflow Damage . | . . . . . Projectiles . | . . . . . Explosions . | . . . . . Melee . | . . . . . Knockbacks 5 | . 4 . . 1 Impact . | . . . . . Kinetic 5 | . 4 . . 1 Secondary . | . . . . . Self-Inflicted Damage . | . . . . . Shots . | . . . . . Rammed 9 | . 9 . . . Targets Rammed 10 | . 10 . . . Kicked . | . . . . . Crushed 1 | . 1 . . . Highest Temperature 548 | . 548 . . 27 Average Temperature 152 | . 171 . . 10 Received Heat Transfer 180 | . 168 . . 12 Effects 15 | . 15 . . . Shutdowns 3 | . 3 . . . Energy Bleed 1 | . 1 . . . Interference 5 | . 5 . . . Matter Decay 1 | . 1 . . . Damage (minor) 1 | . 1 . . . Damage (major) 4 | . 4 . . . Siege Activations . | . . . . . Robots Corrupted . | . . . . . Combat Hostiles . | . . . . . Parts Fried . | . . . . . Impact Corruptions . | . . . . . Robots Melted . | . . . . . Combat Hostiles . | . . . . . Parts Melted 3 | . 3 . . . Heat Transferred 876 | . 876 . . . Parts Sabotaged . | . . . . . Parts Stolen . | . . . . . Parts Stripped . | . . . . . Power Chain Reactions . | . . . . . Alert | -11 -10 -10 -10 -9 ------- Run | Yrd Mat Min Exi Min Peak Influence 218 | . 218 34 . 20 Initial 19 | . . 19 . . Average 50 | . 56 27 . 2 Maximum Alert Level 1 | . 1 . . . Low Security (%) 95 | 100 94 100 . 100 Level 1 4 | . 5 . . . Level 2 . | . . . . . Level 3 . | . . . . . Level 4 . | . . . . . Level 5 . | . . . . . High Security . | . . . . . Max Security . | . . . . . Squads Dispatched 4 | . 4 . . . Investigation 1 | . 1 . . . Extermination . | . . . . . Reinforcement 3 | . 3 . . . Assault . | . . . . . Garrison . | . . . . . Intercept . | . . . . . Searches Triggered . | . . . . . Construction Impeded . | . . . . . Haulers Reinforced . | . . . . . Active Scanning Responses . | . . . . . Cargo Convoy Interrupts . | . . . . . Stealth | -11 -10 -10 -10 -9 --------- Run | Yrd Mat Min Exi Min Distress Signals 2 | . 2 . . . Communications Jammed . | . . . . . Distress Signals . | . . . . . Times Spotted 26 | . 22 2 . 2 Peak Tracking Total 7 | . 7 1 . 2 Tactical Retreats 1 | . 1 . . . Traps | -11 -10 -10 -10 -9 ------- Run | Yrd Mat Min Exi Min Traps Triggered 1 | . 1 . . . Indirectly . | . . . . . Trap Hack Attempts . | . . . . . Triggered . | . . . . . Disarmed . | . . . . . Reprogrammed . | . . . . . Reused . | . . . . . Traps Extracted . | . . . . . Installed . | . . . . . Triggered . | . . . . . Machines | -11 -10 -10 -10 -9 ---------- Run | Yrd Mat Min Exi Min Machines Disabled . | . . . . . Max in Single Turn . | . . . . . Machines Repaired . | . . . . . Machines Dismantled . | . . . . . Machines Sabotaged . | . . . . . Overloaded Fab Kills . | . . . . . Hacking | -11 -10 -10 -10 -9 --------- Run | Yrd Mat Min Exi Min Machines Accessed 3 | . 2 . 1 . Terminals 1 | . 1 . . . Fabricators . | . . . . . Repair Stations . | . . . . . Recycling Units 1 | . 1 . . . Scanalyzers . | . . . . . Garrison Access . | . . . . . Total Hacks 5 | . 4 . 1 . Successful 3 | . 2 . 1 . Failed 2 | . 2 . . . Catastrophic 2 | . 2 . . . Database Lockouts . | . . . . . Manual 1 | . . . 1 . Terminals 3 | . 3 . . . Fabricators . | . . . . . Repair Stations . | . . . . . Recycling Units 1 | . 1 . . . Scanalyzers . | . . . . . Garrison Access . | . . . . . Terminal Hacks 2 | . 1 . 1 . Recall Reinforcements 1 | . 1 . . . Derelict Proto ID Bank 1 | . . . 1 . Fabricator Hacks . | . . . . . Repair Station Hacks . | . . . . . Recycling Unit Hacks 1 | . 1 . . . Report Inventory 1 | . 1 . . . Scanalyzer . | . . . . . Garrison Access Hacks . | . . . . . Unauthorized Hacks . | . . . . . Terminals . | . . . . . Fabricators . | . . . . . Repair Stations . | . . . . . Recycling Units . | . . . . . Scanalyzers . | . . . . . Garrison Access . | . . . . . Data Cores Recovered . | . . . . . Used . | . . . . . Hacking Detections 1 | . 1 . . . Full Trace Events 1 | . 1 . . . Feedback Events . | . . . . . Feedback Blocked . | . . . . . Robot Schematics Acquired . | . . . . . Robots Built . | . . . . . Authchips . | . . . . . Time . | . . . . . Total Robot Build Rating . | . . . . . Part Schematics Acquired . | . . . . . Parts Built . | . . . . . Authchips . | . . . . . Time . | . . . . . Total Part Build Rating . | . . . . . Parts Repaired . | . . . . . Time . | . . . . . Parts Recycled . | . . . . . Recycled Matter . | . . . . . Retrieved Matter . | . . . . . Retrieved Components . | . . . . . Parts Scanalyzed . | . . . . . Part Schematics Acquired . | . . . . . Parts Damaged . | . . . . . Bothacking | -11 -10 -10 -10 -9 ------------ Run | Yrd Mat Min Exi Min Used RIF Installer . | . . . . . Robots Hacked . | . . . . . Non-combat . | . . . . . Combat . | . . . . . Robot Hacks Applied . | . . . . . Relay Couplers Released . | . . . . . Fabnet Peak Effective % . | . . . . . Robots Rewired . | . . . . . Allies Hacked . | . . . . . Hacks Repelled . | . . . . . Allies | -11 -10 -10 -10 -9 -------- Run | Yrd Mat Min Exi Min Total Allies 3 | . . 3 . . Largest Group 3 | . . 3 3 3 Highest-Rated Group 40 | . . 40 40 40 Highest-Rated Ally 16 | . . 16 16 16 Total Orders . | . . . . . Ally Attacks 2 | . . 2 . . Total Damage 28 | . . 28 . . Kills . | . . . . . Allies Corrupted . | . . . . . Allies Melted . | . . . . . Intel | -11 -10 -10 -10 -9 ------- Run | Yrd Mat Min Exi Min Robot Analysis Total . | . . . . . Derelict Logs Recovered . | . . . . . Drone Launches . | . . . . . Drone Recoveries . | . . . . . Exploration | -11 -10 -10 -10 -9 ------------- Run | Yrd Mat Min Exi Min Turns Passed 2591 | 86 1632 189 627 57 Spaces Moved 1302 | 57 837 107 289 12 Core 17 | 16 . . . 1 Treads 1285 | 41 837 107 289 11 Legs . | . . . . . Wheels . | . . . . . Hover . | . . . . . Flight . | . . . . . Fastest Speed 50 | 50 160 160 160 240 Average Speed 172 | 129 160 160 216 297 Slowest Speed 850 | 160 160 160 240 850 Overloaded Moves . | . . . . . Propulsion Burnouts . | . . . . . Robots Hopped . | . . . . . Cave-ins Triggered . | . . . . . Exploration Rate (%) 33 | 5 74 14 69 6 Regions Visited 4 Branch Regions 3 Pre-discovered Areas . | . . . . . Known Exits Taken 3 | . 1 1 1 . Unknown Exits Taken 1 | 1 . . . . Scrap Searched 1 | . . 1 . . Spaces Dug . | . . . . . Terrain Destroyed . | . . . . . Melee . | . . . . . Projectile . | . . . . . AOE . | . . . . . Terrain Rammed . | . . . . . Walls Destroyed . | . . . . . Machines Disabled . | . . . . . Actions | -11 -10 -10 -10 -9 --------- Run | Yrd Mat Min Exi Min Total 1539 | 68 1032 127 291 21 Wait 96 | . 87 9 . . Move 1298 | 56 836 106 288 12 Hop . | . . . . . Pick Up 32 | 6 19 6 1 . Fast Attach 4 | 4 . . . . Attach 5 | 2 1 . . 2 Detach . | . . . . . Swap 11 | . 9 1 1 . Drop 13 | . 7 5 1 . Fire 70 | . 63 . . 7 Melee . | . . . . . Ram . | . . . . . Kick . | . . . . . Crush 10 | . 10 . . . Escape Stasis . | . . . . . Rewire . | . . . . . Trap . | . . . . . Miscellaneous . | . . . . . Route ------- -11/Scrapyard -10/Materials (discovered 5 exits: *Mat x3 / *Min / *Sub) -10/Mines (discovered 2 exits: *Mat / *Exi) -10/Exiles -9/Mines History --------- Turn | Location | Event 6 | -11/Scrapyard | Discovered new exit (range 16) 87 | -11/Scrapyard | Entered Materials 303 | -10/Materials | Discovered new exit (range 3) 315 | -10/Materials | Build established: Mutant 335 | -10/Materials | Discovered new exit (range 5) 726 | -10/Materials | Discovered new exit (range 13) 769 | -10/Materials | Discovered new exit (range 14) 1177 | -10/Materials | Discovered new exit (range 11) 1363 | -10/Materials | Identified exit to Materials 1398 | -10/Materials | Identified exit to Subcaves 1715 | -10/Materials | Identified exit to Mines 1719 | -10/Materials | Entered Mines 1743 | -10/Mines | Discovered exit to Materials (range 5) 1758 | -10/Mines | Assisted by bots powering up and referring to "LRC-V3" 1805 | -10/Mines | Joined a pair of Derelicts in attacking an 0b10 outpost 1902 | -10/Mines | Deemed a non-threat by the Exiles lab entrance 1902 | -10/Mines | Discovered new exit (range 5) 1906 | -10/Mines | Identified exit to Exiles 1908 | -10/Mines | Entered Exiles 1908 | -10/Exiles | Accompanied by 3 allies 1947 | -10/Exiles | Met 8R-AWN 1976 | -10/Exiles | Met EX-HEX 2080 | -10/Exiles | Met EX-DEC 2188 | -10/Exiles | Met EX-BIN 2222 | -10/Exiles | Aligned with FarCom system 2224 | -10/Exiles | Given EX-Vault access code 2280 | -10/Exiles | Opened EX-Vault 2299 | -10/Exiles | Found PSU Rigger 2353 | -10/Exiles | Warned to stay clear of 0b10 Research branches 2378 | -10/Exiles | Exiles lab attacked by MAIN.C 2513 | -10/Exiles | Discovered new exit (range 10) 2533 | -10/Exiles | Identified exit to Mines 2535 | -10/Exiles | Left Exiles lab with PSU Rigger 2535 | -10/Exiles | Entered Mines 2535 | -9/Mines | Accompanied by 3 allies 2548 | -9/Mines | Assembled infested the area 2553 | -9/Mines | Met a Derelict bent on vengeance 2562 | -9/Mines | Core integrity fell below 50% 2584 | -9/Mines | Core integrity fell below 20% 2588 | -9/Mines | Lost 3 allies 2592 | -9/Mines | Destroyed by D-53 Grenadier with Mini Grenade Launcher Last Messages --------------- D-53 Grenadier knocked back. U-05 Engineer lays Concrete. U-05 Engineer builds a Wall. D-53 Grenadier destroyed. R-06 Scavenger collects Lgt. Deuterium Engine. U-05 Engineer lays Concrete. Lgt. Treads destroyed. U-05 Engineer lays Concrete. R-06 Scavenger destroyed. U-05 Engineer lays Concrete. Lgt. Cannon destroyed. U-05 Engineer lays Concrete. Lgt. Treads destroyed. Lgt. Cannon destroyed. U-05 Engineer lays Concrete. The unstable cave ceiling collapses. U-05 Engineer lays Concrete. Ion Engine destroyed. U-05 Engineer lays Concrete. U-05 Engineer destroyed. Map ----- +----------------------------------------------------+ | | | | | | | | | | | | | | | | | | | | | ?????????????????????????????????????????????????? | | ?????????????????????????????????????????????????? | | ?????????????????????????????????????????????????? | | ?????????????????????????????????????????????????? | | ?????????????????????????????????????????????????? | | ?????????????????????????????????????????????????? | | ?????????????????????????????????????????????????? | | ?????????????????????????????????????????????????? | | ??????????????????????######?????????????????????? | | ??????????????????????# ??????????????????????? | | ??????????????????????# ###????????????????????? | | ?????????????????????## d###???????????????????? | | ?????????????????##### ##?#????????????????? | | ????????????????## ## # #????????????????? | | ????????????????# #????????????????? | | ???????????????## @ %#????????????????? | | ?????????####### #????????????????? | | ????????# ## r ##????????????????? | | ????????# ###### ## ##?????????????????? | | ???????????????# ## ##?????????????????? | | ???????????????# ### #??????????????????? | | ??????????????# #?## # ###??????????????????? | | ?????????????# ##??######????????????????????? | | ?????????????# ##?????????????????????????????? | | ?????????????## #???????????????????????????????? | | ??????????????###????????????????????????????????? | | ?????????????????????????????????????????????????? | | ?????????????????????????????????????????????????? | | ?????????????????????????????????????????????????? | | ?????????????????????????????????????????????????? | | ?????????????????????????????????????????????????? | | ?????????????????????????????????????????????????? | | ?????????????????????????????????????????????????? | | ?????????????????????????????????????????????????? | | ?????????????????????????????????????????????????? | | ?????????????????????????????????????????????????? | | ?????????????????????????????????????????????????? | | ?????????????????????????????????????????????????? | | ?????????????????????????????????????????????????? | | ?????????????????????????????????????????????????? | +----------------------------------------------------+ Best States ------------- Heat Dissipation 25 Energy Generation 10 Energy Capacity 250 Matter Stores 300 Matter Capacity 300 Sight Range 18 Terrain Scan Density 10 Evasion (%) 50 Recoil Reduction 2 Item Schematics ----------------- None Robot Schematics ------------------ None Fabricated ------------ Nothing Alien Tech Used ----------------- None Achievements -------------- GoHome() Challenges ------------ None Game ------ Seed DeuteriumMappingWings Manual? 0 Play Time 00:15:40 Cumulative 8.6 hours Start 2024.04.10 @ 20:39:06 End 2024.04.10 @ 20:54:27 Sessions 1 Manual Loads 0 Difficulty Rogue Special Mode None Game No. 19 Rogue 19 Adventurer 0 Explorer 0 Win Type - Total 0 Types 0/0/0/0/0/0/0/0/0 Lore% 7 Gallery% 12 Achievement% 14 Wizard Run 0 Options --------- Layout 0 ASCII 0 Keyboard 0 Movement Mouse Keybinds 0 Fullscreen 1 Font 24/Smallcaps Map View 56x25 Zoom Use 98% Tactical HUD 0 Map Filters NONE Filters NONE Steam 1 RUN: 64a0dd3b-bced-4719-a4cb-43146426a496